[Event "*** Biggest EVER Titled Tuesday"]
[Site "Chess.com"]
[Date "2018.04.17"]
[Round "2"]
[White "champ2005"]
[Black "Firouzja2003"]
[Result "0-1"]
[WhiteElo "2603"]
[BlackElo "2732"]
[TimeControl "180+2"]
[EndTime "13:23:39 PDT"]
[Termination "Firouzja2003 won by resignation"]

1. e4 {[%clk 0:02:56.8]} 1... e6 {[%clk 0:02:59.7]} 2. d4 {[%clk 0:02:57.3]}
2... d5 {[%clk 0:02:59.5]} 3. exd5 {[%clk 0:02:58.2]} 3... exd5 {[%clk
0:03:00.2]} 4. Bd3 {[%clk 0:02:59.6]} 4... Bd6 {[%clk 0:03:00.3]} 5. Ne2 {[%clk
0:02:58.7]} 5... Qf6 {[%clk 0:03:00.2]} 6. h3 {[%clk 0:02:54.3]} 6... Ne7 {[%clk
0:03:00.7]} 7. Nd2 {[%clk 0:02:50.1]} 7... O-O {[%clk 0:02:59.3]} 8. O-O {[%clk
0:02:37.5]} 8... Nbc6 {[%clk 0:02:51.7]} 9. c3 {[%clk 0:02:37.8]} 9... Bf5
{[%clk 0:02:52.2]} 10. Bxf5 {[%clk 0:02:21.8]} 10... Qxf5 {[%clk 0:02:52.2]} 11.
Nf3 {[%clk 0:02:21.1]} 11... Ng6 {[%clk 0:02:53]} 12. Be3 {[%clk 0:02:09]} 12...
Rfe8 {[%clk 0:02:51.6]} 13. Qd2 {[%clk 0:02:10.2]} 13... Nce7 {[%clk 0:02:41.3]}
14. Rae1 {[%clk 0:02:08.9]} 14... c6 {[%clk 0:02:32.2]} 15. Ng3 {[%clk
0:02:09.9]} 15... Qd7 {[%clk 0:02:30.6]} 16. Re2 {[%clk 0:02:04]} 16... Bxg3
{[%clk 0:02:28.7]} 17. fxg3 {[%clk 0:02:04.6]} 17... Nf5 {[%clk 0:02:30.6]} 18.
Bf2 {[%clk 0:02:03.8]} 18... Rxe2 {[%clk 0:02:28.6]} 19. Qxe2 {[%clk 0:02:05.3]}
19... Re8 {[%clk 0:02:30.5]} 20. Qd2 {[%clk 0:02:06]} 20... Nd6 {[%clk
0:02:29.9]} 21. Re1 {[%clk 0:02:05]} 21... Ne4 {[%clk 0:02:26.3]} 22. Qe2 {[%clk
0:01:58.1]} 22... f6 {[%clk 0:02:24.8]} 23. Nd2 {[%clk 0:01:58.1]} 23... Kf7
{[%clk 0:02:19.7]} 24. Nxe4 {[%clk 0:01:58.8]} 24... Rxe4 {[%clk 0:02:21.6]} 25.
Qd2 {[%clk 0:01:58.3]} 25... Rxe1+ {[%clk 0:02:22.8]} 26. Qxe1 {[%clk
0:01:59.3]} 26... Qe6 {[%clk 0:02:24]} 27. Qd1 {[%clk 0:01:41]} 27... Ne7 {[%clk
0:02:13.6]} 28. Qb3 {[%clk 0:01:39.9]} 28... Qd7 {[%clk 0:02:10]} 29. Qa4 {[%clk
0:01:29.5]} 29... Nc8 {[%clk 0:02:09.6]} 30. g4 {[%clk 0:01:27.4]} 30... b5
{[%clk 0:02:08.4]} 31. Qa6 {[%clk 0:01:24.7]} 31... Nd6 {[%clk 0:01:51.1]} 32.
Bg3 {[%clk 0:01:24.8]} 32... Qb7 {[%clk 0:01:52.6]} 33. Qxb7+ {[%clk 0:00:46.2]}
33... Nxb7 {[%clk 0:01:51.4]} 34. Kf2 {[%clk 0:00:46.1]} 34... Nd8 {[%clk
0:01:45.9]} 35. Ke3 {[%clk 0:00:46.5]} 35... Ne6 {[%clk 0:01:46]} 36. Kd3 {[%clk
0:00:43.7]} 36... Ng5 {[%clk 0:01:39.8]} 37. Bb8 {[%clk 0:00:43.4]} 37... a5
{[%clk 0:01:35.7]} 38. b3 {[%clk 0:00:38.8]} 38... Ne4 {[%clk 0:01:27.8]} 39.
Bc7 {[%clk 0:00:38.5]} 39... a4 {[%clk 0:01:28.6]} 40. bxa4 {[%clk 0:00:39.7]}
40... bxa4 {[%clk 0:01:30.5]} 41. Kc2 {[%clk 0:00:40.6]} 41... Ke6 {[%clk
0:01:27.4]} 42. Kb2 {[%clk 0:00:38.8]} 42... Kd7 {[%clk 0:01:28.2]} 43. Ba5
{[%clk 0:00:39.6]} 43... Nd6 {[%clk 0:00:53.9]} 44. Ka3 {[%clk 0:00:32]} 44...
Nc4+ {[%clk 0:00:55.8]} 45. Kxa4 {[%clk 0:00:33.1]} 45... Ne3 {[%clk 0:00:57.7]}
46. Bb4 {[%clk 0:00:29.8]} 46... Nxg2 {[%clk 0:00:48.7]} 47. Bf8 {[%clk
0:00:29.3]} 47... g6 {[%clk 0:00:49.2]} 48. Bg7 {[%clk 0:00:26]} 48... f5 {[%clk
0:00:41.6]} 49. gxf5 {[%clk 0:00:26.8]} 49... gxf5 {[%clk 0:00:43.5]} 50. Be5
{[%clk 0:00:28.4]} 50... f4 {[%clk 0:00:43.4]} 51. Ka5 {[%clk 0:00:21.6]} 51...
f3 {[%clk 0:00:41.8]} 52. Bg3 {[%clk 0:00:22.7]} 52... Nf4 {[%clk 0:00:39.6]}
53. h4 {[%clk 0:00:17.7]} 53... Ne2 {[%clk 0:00:35.6]} 54. Bf2 {[%clk 0:00:15]}
54... Nxc3 {[%clk 0:00:37.5]} 55. Kb6 {[%clk 0:00:15.7]} 55... Nxa2 {[%clk
0:00:36.3]} 56. Kc5 {[%clk 0:00:15.8]} 56... Nc3 {[%clk 0:00:37.2]} 57. Kb6
{[%clk 0:00:16.4]} 57... Ne4 {[%clk 0:00:39.1]} 58. Be3 {[%clk 0:00:16.9]} 58...
f2 {[%clk 0:00:41]} 59. Bxf2 {[%clk 0:00:18.2]} 59... Nxf2 {[%clk 0:00:42.9]}
0-1

[Event "*** Biggest EVER Titled Tuesday"]
[Site "Chess.com"]
[Date "2018.04.17"]
[Round "2"]
[White "GMBenjaminBok"]
[Black "GeorgMeier"]
[Result "0-1"]
[WhiteElo "2587"]
[BlackElo "2795"]
[TimeControl "180+2"]
[EndTime "13:23:41 PDT"]
[Termination "GeorgMeier won by resignation"]

1. c4 {[%clk 0:03:01.9]} 1... b6 {[%clk 0:03:00.4]} 2. g3 {[%clk 0:03:01.7]}
2... Bb7 {[%clk 0:03:01.6]} 3. Nf3 {[%clk 0:03:03.3]} 3... Bxf3 {[%clk
0:03:00.5]} 4. exf3 {[%clk 0:03:05.2]} 4... c5 {[%clk 0:03:02.3]} 5. d4 {[%clk
0:03:06.4]} 5... Nc6 {[%clk 0:03:03.1]} 6. d5 {[%clk 0:03:08]} 6... Nd4 {[%clk
0:03:04.6]} 7. Be3 {[%clk 0:03:07.3]} 7... Nf5 {[%clk 0:03:04.8]} 8. Bd2 {[%clk
0:03:08.4]} 8... g6 {[%clk 0:03:06.2]} 9. Bc3 {[%clk 0:03:02.1]} 9... Bg7 {[%clk
0:03:03.7]} 10. Bxg7 {[%clk 0:03:02.4]} 10... Nxg7 {[%clk 0:03:05.6]} 11. Bh3
{[%clk 0:02:56.2]} 11... Nh6 {[%clk 0:03:03.2]} 12. g4 {[%clk 0:02:53.5]} 12...
f5 {[%clk 0:02:54.9]} 13. Nc3 {[%clk 0:02:36.9]} 13... e6 {[%clk 0:02:43.8]} 14.
Bg2 {[%clk 0:02:29.1]} 14... O-O {[%clk 0:02:29.6]} 15. O-O {[%clk 0:02:24]}
15... Qh4 {[%clk 0:02:08.8]} 16. h3 {[%clk 0:02:22]} 16... e5 {[%clk 0:02:06.3]}
17. Qd2 {[%clk 0:01:55.1]} 17... e4 {[%clk 0:01:44.8]} 18. fxe4 {[%clk
0:01:11.5]} 18... fxg4 {[%clk 0:01:43.9]} 19. Qe3 {[%clk 0:01:12.9]} 19... Nh5
{[%clk 0:01:29.4]} 20. Ne2 {[%clk 0:00:45.5]} 20... Rae8 {[%clk 0:01:23.7]} 21.
Rae1 {[%clk 0:00:17]} 21... Nf5 {[%clk 0:00:52.5]} 22. Qd3 {[%clk 0:00:12.5]}
22... Nd4 {[%clk 0:00:50.6]} 23. Nxd4 {[%clk 0:00:08.5]} 23... cxd4 {[%clk
0:00:52.5]} 24. hxg4 {[%clk 0:00:08.6]} 24... Qxg4 {[%clk 0:00:52.5]} 25. Qh3
{[%clk 0:00:06.3]} 25... Qg5 {[%clk 0:00:51.6]} 26. Kh1 {[%clk 0:00:05.2]} 26...
d3 {[%clk 0:00:50.1]} 27. Qe3 {[%clk 0:00:04.5]} 27... Nf4 {[%clk 0:00:48.1]}
28. Bh3 {[%clk 0:00:05.8]} 28... Re5 {[%clk 0:00:40.2]} 29. Rg1 {[%clk
0:00:05.8]} 29... Qh6 {[%clk 0:00:41.2]} 30. Rg3 {[%clk 0:00:06.5]} 30... Rh5
{[%clk 0:00:41.5]} 31. Kh2 {[%clk 0:00:07.3]} 31... Nxh3 {[%clk 0:00:36.9]} 32.
Qxh6 {[%clk 0:00:07.7]} 32... Rxh6 {[%clk 0:00:36.6]} 33. Rxh3 {[%clk
0:00:08.7]} 33... Rxf2+ {[%clk 0:00:37]} 34. Kg3 {[%clk 0:00:10.3]} 34... Rxh3+
{[%clk 0:00:32.6]} 35. Kxf2 {[%clk 0:00:11.7]} 35... d6 {[%clk 0:00:24.7]} 36.
e5 {[%clk 0:00:12]} 36... Rh2+ {[%clk 0:00:25.2]} 37. Ke3 {[%clk 0:00:11.4]}
37... Re2+ {[%clk 0:00:25.6]} 38. Rxe2 {[%clk 0:00:09.8]} 38... dxe2 {[%clk
0:00:27.5]} 39. Kxe2 {[%clk 0:00:11]} 39... dxe5 {[%clk 0:00:28.9]} 40. b4
{[%clk 0:00:11.3]} 40... Kf7 {[%clk 0:00:29.5]} 41. c5 {[%clk 0:00:11.1]} 41...
bxc5 {[%clk 0:00:30.3]} 42. bxc5 {[%clk 0:00:13]} 42... h5 {[%clk 0:00:27.4]}
43. Kf3 {[%clk 0:00:14.2]} 43... Ke7 {[%clk 0:00:24.4]} 44. Ke4 {[%clk
0:00:14.2]} 44... h4 {[%clk 0:00:25.7]} 45. Kxe5 {[%clk 0:00:03.8]} 45... h3
{[%clk 0:00:26.7]} 46. d6+ {[%clk 0:00:04.5]} 46... Kd7 {[%clk 0:00:22.6]} 47.
c6+ {[%clk 0:00:02.6]} 47... Kxc6 {[%clk 0:00:21.3]} 48. Ke6 {[%clk 0:00:03.8]}
48... h2 {[%clk 0:00:21]} 49. d7 {[%clk 0:00:05.2]} 49... h1=Q {[%clk
0:00:22.1]} 50. d8=Q {[%clk 0:00:06.6]} 50... Qe4+ {[%clk 0:00:22.3]} 51. Kf7
{[%clk 0:00:06.5]} 51... Qf5+ {[%clk 0:00:20.7]} 52. Kg7 {[%clk 0:00:05.9]}
52... g5 {[%clk 0:00:16.8]} 53. Qd4 {[%clk 0:00:02.5]} 53... Qd7+ {[%clk
0:00:13.9]} 0-1

[Event "*** Biggest EVER Titled Tuesday"]
[Site "Chess.com"]
[Date "2018.04.17"]
[Round "2"]
[White "TigranLPetrosyan"]
[Black "joppie2"]
[Result "1/2-1/2"]
[WhiteElo "2652"]
[BlackElo "2639"]
[TimeControl "180+2"]
[EndTime "13:23:44 PDT"]
[Termination "Game drawn by repetition"]

1. d4 {[%clk 0:03:00.7]} 1... e6 {[%clk 0:03:00]} 2. Nf3 {[%clk 0:03:02.6]} 2...
c5 {[%clk 0:02:55.4]} 3. e4 {[%clk 0:02:59.3]} 3... cxd4 {[%clk 0:02:56.3]} 4.
Nxd4 {[%clk 0:03:01.2]} 4... Nc6 {[%clk 0:02:57.7]} 5. Nxc6 {[%clk 0:02:58]}
5... bxc6 {[%clk 0:02:57.7]} 6. Bd3 {[%clk 0:02:59.9]} 6... d5 {[%clk
0:02:59.1]} 7. O-O {[%clk 0:02:58.9]} 7... Nf6 {[%clk 0:03:00.5]} 8. Nd2 {[%clk
0:02:57.4]} 8... Be7 {[%clk 0:02:58.2]} 9. Qe2 {[%clk 0:02:56.2]} 9... a5 {[%clk
0:02:54]} 10. a4 {[%clk 0:02:48.9]} 10... O-O {[%clk 0:02:54.5]} 11. b3 {[%clk
0:02:38]} 11... Nd7 {[%clk 0:02:54.9]} 12. Bb2 {[%clk 0:02:36.4]} 12... Nc5
{[%clk 0:02:47.4]} 13. Rfd1 {[%clk 0:02:00.9]} 13... Bf6 {[%clk 0:02:45.1]} 14.
Bxf6 {[%clk 0:01:39.2]} 14... Qxf6 {[%clk 0:02:47]} 15. Qe3 {[%clk 0:01:38.6]}
15... Qe7 {[%clk 0:02:12.8]} 16. Nf3 {[%clk 0:01:30.3]} 16... h6 {[%clk
0:02:09.3]} 17. exd5 {[%clk 0:01:25.5]} 17... cxd5 {[%clk 0:02:05.8]} 18. Bb5
{[%clk 0:01:25.4]} 18... Rd8 {[%clk 0:01:59]} 19. Nd4 {[%clk 0:00:52.6]} 19...
Bb7 {[%clk 0:01:58.7]} 20. Nc6 {[%clk 0:00:52.4]} 20... Bxc6 {[%clk 0:01:59]}
21. Bxc6 {[%clk 0:00:54.3]} 21... Ra7 {[%clk 0:01:30.4]} 22. Bb5 {[%clk
0:00:54.2]} 22... Rc7 {[%clk 0:01:30.7]} 23. f3 {[%clk 0:00:42.4]} 23... Qf6
{[%clk 0:01:31.5]} 24. Qd4 {[%clk 0:00:39.9]} 24... Qxd4+ {[%clk 0:01:26.2]} 25.
Rxd4 {[%clk 0:00:41.8]} 25... Kf8 {[%clk 0:01:27.7]} 26. Kf2 {[%clk 0:00:41.3]}
26... Ke7 {[%clk 0:01:27]} 27. Rd2 {[%clk 0:00:42.2]} 27... Rdc8 {[%clk
0:01:27.2]} 28. Ke2 {[%clk 0:00:32.5]} 28... Nb7 {[%clk 0:01:25.4]} 29. Kd1
{[%clk 0:00:33.4]} 29... Nd6 {[%clk 0:01:26.2]} 30. Be2 {[%clk 0:00:28.5]} 30...
Nf5 {[%clk 0:01:26.5]} 31. Kc1 {[%clk 0:00:28.1]} 31... Ne3 {[%clk 0:01:26.1]}
32. Bd3 {[%clk 0:00:27.9]} 32... e5 {[%clk 0:01:26.3]} 33. Kb2 {[%clk
0:00:28.7]} 33... f5 {[%clk 0:01:25.7]} 34. Re1 {[%clk 0:00:28.9]} 34... d4
{[%clk 0:01:23.7]} 35. g4 {[%clk 0:00:20.5]} 35... g6 {[%clk 0:01:23.1]} 36.
gxf5 {[%clk 0:00:21]} 36... gxf5 {[%clk 0:01:25]} 37. Rg1 {[%clk 0:00:16.7]}
37... Kf6 {[%clk 0:01:25.5]} 38. h4 {[%clk 0:00:17.2]} 38... Rb8 {[%clk
0:01:12.1]} 39. h5 {[%clk 0:00:16.9]} 39... Rg7 {[%clk 0:01:08.4]} 40. Rxg7
{[%clk 0:00:16.9]} 40... Kxg7 {[%clk 0:01:10.3]} 41. Bb5 {[%clk 0:00:16.6]}
41... Rc8 {[%clk 0:01:06.6]} 42. f4 {[%clk 0:00:12.6]} 42... exf4 {[%clk
0:01:05.2]} 43. Rxd4 {[%clk 0:00:13.5]} 43... Rxc2+ {[%clk 0:01:06.1]} 44. Kb1
{[%clk 0:00:13.3]} 44... f3 {[%clk 0:01:01.6]} 45. Rf4 {[%clk 0:00:07.8]} 45...
Rf2 {[%clk 0:00:51.5]} 46. b4 {[%clk 0:00:05.7]} 46... Nd5 {[%clk 0:00:51.3]}
47. Rxf5 {[%clk 0:00:06.5]} 47... Nc3+ {[%clk 0:00:52.4]} 48. Kc1 {[%clk
0:00:07.1]} 48... axb4 {[%clk 0:00:53.9]} 49. Bc4 {[%clk 0:00:05.1]} 49... Ne2+
{[%clk 0:00:42]} 50. Kd1 {[%clk 0:00:06.2]} 50... Nd4 {[%clk 0:00:36.7]} 51.
Rf7+ {[%clk 0:00:07]} 51... Kh8 {[%clk 0:00:32.1]} 52. Rf8+ {[%clk 0:00:08.3]}
52... Kg7 {[%clk 0:00:32.7]} 53. Rf7+ {[%clk 0:00:10.2]} 53... Kh8 {[%clk
0:00:32.7]} 54. Rf8+ {[%clk 0:00:11.2]} 54... Kg7 {[%clk 0:00:33.9]} 55. Rf7+
{[%clk 0:00:12.6]} 55... Kh8 {[%clk 0:00:35.5]} 56. Rf8+ {[%clk 0:00:04.9]}
56... Kg7 {[%clk 0:00:35.6]} 57. Rf7+ {[%clk 0:00:06.8]} 57... Kh8 {[%clk
0:00:36.8]} 58. Rf8+ {[%clk 0:00:04.4]} 58... Kg7 {[%clk 0:00:37.1]} 1/2-1/2

[Event "*** Biggest EVER Titled Tuesday"]
[Site "Chess.com"]
[Date "2018.04.17"]
[Round "2"]
[White "biostatistician"]
[Black "saraswathii"]
[Result "1-0"]
[WhiteElo "2435"]
[BlackElo "2279"]
[TimeControl "180+2"]
[EndTime "13:23:57 PDT"]
[Termination "biostatistician won by resignation"]

1. d4 {[%clk 0:03:01.9]} 1... Nf6 {[%clk 0:02:57.9]} 2. Nf3 {[%clk 0:03:03.8]}
2... g6 {[%clk 0:02:58.9]} 3. c4 {[%clk 0:03:03.8]} 3... Bg7 {[%clk 0:03:00.4]}
4. Nc3 {[%clk 0:03:05.3]} 4... d6 {[%clk 0:03:01.9]} 5. e4 {[%clk 0:03:06.2]}
5... O-O {[%clk 0:03:03.5]} 6. Be2 {[%clk 0:03:06.7]} 6... c5 {[%clk 0:03:03.2]}
7. d5 {[%clk 0:03:07.2]} 7... a6 {[%clk 0:03:03]} 8. O-O {[%clk 0:03:05.2]} 8...
Qc7 {[%clk 0:03:02.7]} 9. h3 {[%clk 0:03:04.1]} 9... e6 {[%clk 0:03:00.4]} 10.
Bd3 {[%clk 0:03:02.5]} 10... exd5 {[%clk 0:03:01.1]} 11. exd5 {[%clk 0:03:04.4]}
11... Nfd7 {[%clk 0:02:54.7]} 12. Bf4 {[%clk 0:03:03]} 12... Ne5 {[%clk
0:02:53.7]} 13. Nxe5 {[%clk 0:03:03.6]} 13... dxe5 {[%clk 0:02:50.9]} 14. Be3
{[%clk 0:03:04.3]} 14... f5 {[%clk 0:02:50.7]} 15. f4 {[%clk 0:03:03]} 15... e4
{[%clk 0:02:51.2]} 16. Be2 {[%clk 0:03:02.6]} 16... Qd6 {[%clk 0:02:50.4]} 17.
Qd2 {[%clk 0:03:02.7]} 17... Nd7 {[%clk 0:02:49.9]} 18. Rad1 {[%clk 0:03:02.5]}
18... b6 {[%clk 0:02:47.2]} 19. Kh2 {[%clk 0:02:57.1]} 19... Bb7 {[%clk
0:02:42.9]} 20. a4 {[%clk 0:02:56.9]} 20... Rae8 {[%clk 0:02:41.9]} 21. Rg1
{[%clk 0:02:51.1]} 21... Nf6 {[%clk 0:02:33.9]} 22. Rdf1 {[%clk 0:02:46]} 22...
Rf7 {[%clk 0:02:21.2]} 23. Kh1 {[%clk 0:02:43.1]} 23... Kh8 {[%clk 0:02:16.8]}
24. g4 {[%clk 0:02:39.9]} 24... fxg4 {[%clk 0:02:17.3]} 25. hxg4 {[%clk
0:02:41.8]} 25... Qd7 {[%clk 0:02:12.9]} 26. Rf2 {[%clk 0:02:38.2]} 26... Bc8
{[%clk 0:02:01.5]} 27. Rh2 {[%clk 0:02:26.3]} 27... Qd6 {[%clk 0:01:58.6]} 28.
g5 {[%clk 0:02:20.2]} 28... Nd7 {[%clk 0:01:48]} 29. Bg4 {[%clk 0:02:20.1]}
29... Nf8 {[%clk 0:01:40.4]} 30. Qe2 {[%clk 0:02:17]} 30... Bf5 {[%clk
0:01:39.8]} 31. Rg3 {[%clk 0:02:14.2]} 31... Bd4 {[%clk 0:01:37.6]} 32. Bxf5
{[%clk 0:02:11.7]} 32... Rxf5 {[%clk 0:01:34.2]} 33. Rgh3 {[%clk 0:02:07.8]}
33... Bxe3 {[%clk 0:01:32.8]} 34. Qxe3 {[%clk 0:02:08.5]} 34... Qxf4 {[%clk
0:01:30.7]} 35. Qxf4 {[%clk 0:02:07.2]} 35... Rxf4 {[%clk 0:01:32.6]} 36. Kg1
{[%clk 0:01:59.8]} 36... Rg4+ {[%clk 0:01:28.7]} 37. Rg2 {[%clk 0:02:00.5]}
37... Rf4 {[%clk 0:01:24.3]} 38. Re3 {[%clk 0:01:56.1]} 38... Nd7 {[%clk
0:01:23.6]} 39. Rge2 {[%clk 0:01:55.2]} 39... Rg4+ {[%clk 0:01:24.1]} 40. Rg2
{[%clk 0:01:55.9]} 40... Ne5 {[%clk 0:01:17.1]} 41. Rxg4 {[%clk 0:01:53.1]}
41... Nxg4 {[%clk 0:01:16.9]} 42. Rxe4 {[%clk 0:01:54.6]} 42... Rxe4 {[%clk
0:01:11.6]} 43. Nxe4 {[%clk 0:01:56.5]} 43... Ne5 {[%clk 0:01:11]} 44. b3 {[%clk
0:01:50.5]} 44... Kg7 {[%clk 0:01:08.3]} 45. Kf2 {[%clk 0:01:47.5]} 45... Kf7
{[%clk 0:01:06.7]} 46. Ke3 {[%clk 0:01:47.8]} 46... Nd7 {[%clk 0:00:52.2]} 47.
Kf4 {[%clk 0:01:45.9]} 47... Ke7 {[%clk 0:00:53.3]} 48. Nf2 {[%clk 0:01:36.6]}
48... Kd6 {[%clk 0:00:48.9]} 49. Ng4 {[%clk 0:01:28.9]} 49... Ke7 {[%clk
0:00:43.5]} 50. Ne5 {[%clk 0:01:26.2]} 50... Nf8 {[%clk 0:00:44.1]} 51. Nc6+
{[%clk 0:01:23.1]} 51... Kd6 {[%clk 0:00:43.4]} 52. Nb8 {[%clk 0:01:23.5]} 52...
b5 {[%clk 0:00:22.8]} 53. Nxa6 {[%clk 0:01:22.5]} 53... bxa4 {[%clk 0:00:23.1]}
54. bxa4 {[%clk 0:01:23.4]} 54... Nd7 {[%clk 0:00:24.6]} 55. a5 {[%clk
0:01:17.9]} 55... Ne5 {[%clk 0:00:25.4]} 56. Nxc5 {[%clk 0:01:16.4]} 56... Nxc4
{[%clk 0:00:26.3]} 57. Ne4+ {[%clk 0:00:52.2]} 57... Kxd5 {[%clk 0:00:22.4]} 58.
a6 {[%clk 0:00:54.1]} 58... Nb6 {[%clk 0:00:20.9]} 59. Nf6+ {[%clk 0:00:53.8]}
59... Ke6 {[%clk 0:00:21.8]} 60. Nxh7 {[%clk 0:00:54.5]} 60... Nd5+ {[%clk
0:00:22.4]} 61. Ke4 {[%clk 0:00:53.9]} 61... Nc3+ {[%clk 0:00:22.6]} 62. Kd4
{[%clk 0:00:53.7]} 62... Nb5+ {[%clk 0:00:23.7]} 63. Kc5 {[%clk 0:00:54.7]}
63... Nc7 {[%clk 0:00:22.8]} 64. a7 {[%clk 0:00:54.3]} 64... Kd7 {[%clk
0:00:19.3]} 65. Nf8+ {[%clk 0:00:53.1]} 65... Kc8 {[%clk 0:00:20.5]} 66. Kc6
{[%clk 0:00:53.9]} 66... Na8 {[%clk 0:00:17.7]} 67. Nxg6 {[%clk 0:00:54.5]}
67... Nc7 {[%clk 0:00:18.4]} 68. Ne5 {[%clk 0:00:55.2]} 68... Kd8 {[%clk
0:00:18.2]} 69. g6 {[%clk 0:00:54.1]} 1-0

[Event "*** Biggest EVER Titled Tuesday"]
[Site "Chess.com"]
[Date "2018.04.17"]
[Round "2"]
[White "omer1997"]
[Black "LordIron"]
[Result "1-0"]
[WhiteElo "2073"]
[BlackElo "2144"]
[TimeControl "180+2"]
[EndTime "13:23:59 PDT"]
[Termination "omer1997 won by resignation"]

1. e4 {[%clk 0:03:01.9]} 1... c5 {[%clk 0:03:00.3]} 2. Nf3 {[%clk 0:03:01.9]}
2... d6 {[%clk 0:03:01.6]} 3. d4 {[%clk 0:03:03.3]} 3... cxd4 {[%clk 0:03:03.5]}
4. Nxd4 {[%clk 0:03:04.8]} 4... Nf6 {[%clk 0:03:04.4]} 5. Nc3 {[%clk 0:03:04.3]}
5... a6 {[%clk 0:03:05.9]} 6. Be3 {[%clk 0:03:02.5]} 6... e5 {[%clk 0:03:05.5]}
7. Nf3 {[%clk 0:03:01.8]} 7... Be7 {[%clk 0:03:04.7]} 8. Bc4 {[%clk 0:03:01.3]}
8... Be6 {[%clk 0:03:03]} 9. Bb3 {[%clk 0:03:00.8]} 9... O-O {[%clk 0:02:59.2]}
10. O-O {[%clk 0:02:58.5]} 10... Qc8 {[%clk 0:02:56.9]} 11. Qe2 {[%clk
0:02:41.8]} 11... Nbd7 {[%clk 0:02:57.2]} 12. Rfd1 {[%clk 0:02:42.4]} 12... b5
{[%clk 0:02:48.6]} 13. Nd5 {[%clk 0:02:37]} 13... Bxd5 {[%clk 0:02:39.1]} 14.
exd5 {[%clk 0:02:38.9]} 14... Nc5 {[%clk 0:02:31.6]} 15. Rac1 {[%clk 0:02:23.6]}
15... Ng4 {[%clk 0:02:12.3]} 16. Bxc5 {[%clk 0:02:09.6]} 16... Qxc5 {[%clk
0:02:12.4]} 17. c4 {[%clk 0:02:10.5]} 17... b4 {[%clk 0:02:07.9]} 18. Nd2 {[%clk
0:01:53.8]} 18... f5 {[%clk 0:02:07.1]} 19. Bc2 {[%clk 0:01:50.3]} 19... a5
{[%clk 0:01:50.7]} 20. Bxf5 {[%clk 0:01:24.1]} 20... Nxf2 {[%clk 0:01:37.8]} 21.
Qxf2 {[%clk 0:01:18.6]} 21... Qxf2+ {[%clk 0:01:39.7]} 22. Kxf2 {[%clk 0:01:20]}
22... Rxf5+ {[%clk 0:01:41.2]} 23. Ke2 {[%clk 0:01:18.9]} 23... Bg5 {[%clk
0:01:38.5]} 24. Rf1 {[%clk 0:01:05.1]} 24... Raf8 {[%clk 0:01:34.8]} 25. Rxf5
{[%clk 0:01:03.9]} 25... Rxf5 {[%clk 0:01:36.7]} 26. Rf1 {[%clk 0:01:04.3]}
26... g6 {[%clk 0:01:17.2]} 27. Ne4 {[%clk 0:01:02.2]} 27... Be7 {[%clk
0:00:43]} 28. g4 {[%clk 0:01:01.9]} 28... Rf7 {[%clk 0:00:43.2]} 29. Rxf7 {[%clk
0:00:55.7]} 29... Kxf7 {[%clk 0:00:45.1]} 30. Kd3 {[%clk 0:00:54.9]} 30... Ke8
{[%clk 0:00:46.2]} 31. Ke3 {[%clk 0:00:40.5]} 31... Kd7 {[%clk 0:00:46.6]} 32.
g5 {[%clk 0:00:39.6]} 32... Kc8 {[%clk 0:00:34.3]} 33. Kd3 {[%clk 0:00:40.6]}
33... Kb7 {[%clk 0:00:33]} 34. Kc2 {[%clk 0:00:40.9]} 34... Kb6 {[%clk
0:00:29.6]} 35. h4 {[%clk 0:00:40.2]} 35... a4 {[%clk 0:00:30.1]} 36. Kd3 {[%clk
0:00:34.6]} 36... Kc7 {[%clk 0:00:28.7]} 37. Ke3 {[%clk 0:00:35.4]} 37... Kd7
{[%clk 0:00:23.3]} 38. Kf3 {[%clk 0:00:36.5]} 38... Ke8 {[%clk 0:00:23.2]} 39.
Kg4 {[%clk 0:00:37.9]} 39... Kf7 {[%clk 0:00:24.4]} 40. h5 {[%clk 0:00:36.3]}
40... gxh5+ {[%clk 0:00:21.1]} 41. Kxh5 {[%clk 0:00:38.2]} 41... Kg7 {[%clk
0:00:22.6]} 42. Ng3 {[%clk 0:00:37.2]} 42... Bf8 {[%clk 0:00:20]} 43. Nf5+
{[%clk 0:00:38]} 43... Kf7 {[%clk 0:00:21.5]} 44. Ng3 {[%clk 0:00:35.5]} 44...
Be7 {[%clk 0:00:21.3]} 45. Ne4 {[%clk 0:00:36.8]} 45... Kg7 {[%clk 0:00:20.6]}
46. a3 {[%clk 0:00:36.3]} 46... bxa3 {[%clk 0:00:20.7]} 47. bxa3 {[%clk
0:00:38.2]} 47... Kg8 {[%clk 0:00:19.4]} 48. Nc3 {[%clk 0:00:35.4]} 48... Bd8
{[%clk 0:00:18.1]} 49. Nxa4 {[%clk 0:00:36.1]} 49... e4 {[%clk 0:00:18.4]} 50.
Kg4 {[%clk 0:00:32]} 50... e3 {[%clk 0:00:18.7]} 51. Nc3 {[%clk 0:00:31.2]}
51... Ba5 {[%clk 0:00:19.5]} 52. Ne2 {[%clk 0:00:30.3]} 52... Kf7 {[%clk
0:00:19.6]} 53. Nf4 {[%clk 0:00:30.3]} 53... Bd2 {[%clk 0:00:19.2]} 54. a4
{[%clk 0:00:27.1]} 54... Ke7 {[%clk 0:00:18.9]} 55. Kf3 {[%clk 0:00:26.8]} 55...
Kd7 {[%clk 0:00:19.6]} 56. Ke2 {[%clk 0:00:21.4]} 56... Kc7 {[%clk 0:00:19.8]}
57. Nh5 {[%clk 0:00:22.6]} 57... Kb6 {[%clk 0:00:18.9]} 58. Nf6 {[%clk
0:00:24.1]} 58... Kc5 {[%clk 0:00:19.9]} 59. Nxh7 {[%clk 0:00:25.5]} 59... Kxc4
{[%clk 0:00:21.5]} 60. Nf6 {[%clk 0:00:24.1]} 60... Bc3 {[%clk 0:00:21.4]} 61.
Kxe3 {[%clk 0:00:25.1]} 61... Bb2 {[%clk 0:00:19.5]} 62. Ke4 {[%clk 0:00:26.1]}
62... Kb4 {[%clk 0:00:19.9]} 63. Kf5 {[%clk 0:00:25.5]} 63... Kxa4 {[%clk
0:00:20.3]} 64. g6 {[%clk 0:00:26.8]} 64... Kb4 {[%clk 0:00:21.3]} 65. g7 {[%clk
0:00:27.9]} 1-0